Cogmind - Beta 15 @@@ ROGUE MODE // 2025.06.21 @ 22:08:39 Player: erfael Result: Destroyed by DAS Turret with DAS Cannon Performance ------------- Evolutions (0) 0 Regions Visited (3) 600 Robots Destroyed (22) 110 Value Destroyed (445) 445 Prototype IDs (0) 0 Alien Tech Used (0) 0 Bonus (0) 0 TOTAL SCORE: 1155 Bonus ------- None Cogmind --------- Core Integrity 0/250 Matter 260/300 Energy 100/100 System Corruption 8% Temperature Cool (0) Movement Treading (240) Ox1 Location -10/Exiles Parts ------- > --- POWER (1) -------- (None) > --- PROPULSION (2) --- Light Treads > --- UTILITY (2) ------ Large Storage Unit > --- WEAPON (2) ------- Improved Light Cannon > --- INVENTORY (15) --- Light Ion Engine Aluminum Leg Aluminum Leg Scrap Suit Large Storage Unit Improved Terrain Scanner Seismic Detector Light Armor Plating Improved Light Armor Plating Assault Rifle Improved Light Cannon Grenade Launcher Mining Laser Peak State ------------ > --- POWER ------------ Ion Engine > --- PROPULSION ------- Light Treads Light Treads > --- UTILITY ---------- Large Storage Unit Seismic Detector > --- WEAPON ----------- Light Assault Rifle Improved Light Cannon > --- INVENTORY -------- Light Ion Engine Aluminum Leg Aluminum Leg Scrap Suit Large Storage Unit Improved Terrain Scanner Seismic Detector Light Armor Plating Improved Light Armor Plating Assault Rifle Improved Light Cannon Grenade Launcher Mining Laser [Rating: 10] Favorites ----------- Power Ion Engine Engine Ion Engine Propulsion Light Treads Treads Light Treads Leg Aluminum Leg Utility Seismic Detector Device Seismic Detector Storage Large Storage Unit Weapon Light Assault Rifle Energy Gun Small Laser Ballistic Gun Light Assault Rifle Ballistic Cannon Improved Light Cannon Build | -11 -10 -10 -10 ------- Run | Yrd Mat Min Exi Slots Evolved . | . . . . Power . | . . . . Propulsion . | . . . . Utility . | . . . . Weapon . | . . . . Parts Attached 17 | 7 10 . . Power 3 | 1 2 . . Engine 3 | 1 2 . . Core . | . . . . Reactor . | . . . . Propulsion 4 | 2 2 . . Treads 3 | 2 1 . . Leg 1 | . 1 . . Wheel . | . . . . Hover . | . . . . Flight . | . . . . Utility 4 | 2 2 . . Device 1 | 1 . . . Storage 3 | 1 2 . . Processor . | . . . . Hackware . | . . . . Protection . | . . . . Artifact . | . . . . Weapon 6 | 2 4 . . Energy Gun 3 | 2 1 . . Energy Cannon . | . . . . Ballistic Gun 2 | . 2 . . Ballistic Cannon 1 | . 1 . . Launcher . | . . . . Special Weapon . | . . . . Impact Weapon . | . . . . Slashing Weapon . | . . . . Piercing Weapon . | . . . . Special Melee Weapon . | . . . . Unidentified Prototypes . | . . . . Parts Lost 7 | . 3 . 4 Power 2 | . 1 . 1 Propulsion 2 | . 1 . 1 Utility 1 | . . . 1 Weapon 2 | . 1 . 1 Highest Loss Streak 4 | . 3 . 4 To Critical Strikes . | . . . . Average Backups 10 | 6 9 12 13 Power . | . . 1 1 Propulsion 1 | 3 1 2 2 Utility 3 | . 3 5 6 Weapon 3 | 1 3 4 4 Tool/Special . | . . . . Unused Backups 16 | 1 4 . 11 Power . | . . . . Propulsion 3 | 1 1 . 1 Utility 7 | . 1 . 6 Weapon 6 | . 2 . 4 Tool/Special . | . . . . Average Slot Usage (%) 99 | . 99 100 98 Engine 13 | . 13 14 14 Treads 24 | . 22 28 28 Leg 2 | . 5 . . Device 13 | . 14 14 13 Storage 14 | . 14 14 14 Energy Gun 5 | . 10 . . Ballistic Gun 14 | . 14 14 13 Ballistic Cannon 8 | . 3 14 14 Peak Build Rating 10 | 8 9 10 10 Average Rating 8 | 6 8 9 9 On Entrance 6 | . 8 9 10 Naked Turns . | . . . . Heaviest Build 31 | 11 31 31 31 Greatest Support 40 | 40 40 40 40 Greatest Overweight (x) 1 | 1 . . 1 Average Overweight (x) . | . . . . Largest Inventory Capacity 15 | 8 15 15 15 Average Capacity 12 | 7 10 15 15 Most Carried 14 | 8 11 14 14 Average Carried 10 | 6 9 13 14 Final Capacity 15 | 8 15 15 15 Final Carried 14 | 8 11 14 14 Class Distribution -------------------- 100% | Mutant Dominant Class ---------------- Mutant | -10/Materials Mutant | -10/Mines Mutant | -10/Exiles Resources | -11 -10 -10 -10 ----------- Run | Yrd Mat Min Exi Matter Collected 524 | 270 175 79 . Remotely . | . . . . Salvage Created 573 | 98 458 17 . Parts 60 | 17 34 9 . Haulers Intercepted . | . . . . Recyclers Shooed . | . . . . Parts Field Recycled . | . . . . Retrieved Matter . | . . . . Parts Self-Destructed . | . . . . Prevented . | . . . . Kills | -11 -10 -10 -10 ------- Run | Yrd Mat Min Exi Combat Hostiles Destroyed 14 | . 11 3 . Guns 10 | . 10 . . Cannons 4 | . 1 3 . Classes Destroyed 5 | 1 4 . . Builder 1 | . 1 . . Tunneler 6 | 6 . . . Watcher 1 | . 1 . . Swarmer 5 | . 2 3 . Grunt 9 | . 9 . . Best Kill Streak 5 | 3 5 3 . Combat Bots Only 5 | . 5 3 . Max Kills in Single Turn 2 | 2 1 1 . Gunslinging . | . . . . Exploded . | . . . . Melee . | . . . . Uniques/NPCs Destroyed . | . . . . Combat | -11 -10 -10 -10 -------- Run | Yrd Mat Min Exi Hostile Shots Fired 101 | . 60 17 24 Missed 25 | . 14 6 5 Hits 76 | . 46 11 19 Melee 2 | . . . 2 Projectile 74 | . 46 11 17 Critical Strikes 1 | . 1 . . Damage Taken 1137 | . 621 105 411 Core 306 | . 126 13 167 Absorbed by Shields . | . . . . Regen/Repaired (Parts) 140 | . 140 . . Core Remaining (%) 100 | 100 . . . Volleys Fired 66 | 9 46 11 . Largest 2 | 2 2 2 . Hottest 80 | 80 80 53 . Shots Fired 133 | 18 91 23 1 Gun 116 | 18 86 12 . Cannon 17 | . 5 11 1 Launcher . | . . . . Special . | . . . . Kinetic 103 | . 79 23 1 Thermal 30 | 18 12 . . Explosive . | . . . . Electromagnetic . | . . . . Robot Hit Streak 18 | 8 18 8 2 Robot Miss Streak 4 | 1 4 2 . Penetration Max . | . . . . Secondary Targets 3 | . 3 . . Max Gunslinging Chain 1 | . 1 . . Shots Hit Robots 88 | 13 62 12 1 Core Hits 42 | 6 31 5 . Critical Kills . | . . . . Critical Parts Destroyed . | . . . . Critical Strikes . | . . . . Melee Attacks . | . . . . Impact . | . . . . Slashing . | . . . . Piercing . | . . . . Sneak Attacks . | . . . . Combat Hostiles . | . . . . Follow-up Attacks . | . . . . Damage Inflicted 870 | 156 557 157 . Guns 702 | 156 478 68 . Cannons 168 | . 79 89 . Explosions . | . . . . Melee . | . . . . Ramming . | . . . . Kinetic 641 | . 484 157 . Thermal 229 | 156 73 . . Explosive . | . . . . Electromagnetic . | . . . . Impact . | . . . . Slashing . | . . . . Piercing . | . . . . Highest Corruption 8 | . 5 6 8 Average Corruption 5 | . 4 5 6 Corruption Purged . | . . . . Corruption Blocked . | . . . . Effects 34 | . 10 17 7 Message Errors 8 | . 2 5 1 Matter Fused 8 | . 1 6 1 Heat Flow Errors 3 | . 2 1 . Energy Discharges 2 | . . 1 1 Data Loss (minor) 8 | . 2 3 3 Misfires 4 | . 2 1 1 Alerts 1 | . 1 . . Overload Shots . | . . . . Overflow Damage 2 | . . 2 . Projectiles 2 | . . 2 . Explosions . | . . . . Melee . | . . . . Knockbacks 3 | . 1 2 . Impact . | . . . . Kinetic 2 | . 1 1 . Secondary 1 | . . 1 . Self-Inflicted Damage . | . . . . Shots . | . . . . Rammed . | . . . . Targets Rammed . | . . . . Kicked . | . . . . Crushed . | . . . . Highest Temperature 274 | 36 178 274 . Average Temperature 35 | 16 31 60 . Received Heat Transfer 314 | . 294 . 20 Siege Activations . | . . . . Martial Activations . | . . . . Shielding Activations . | . . . . Robots Disrupted . | . . . . Combat Hostiles . | . . . . Robots Corrupted . | . . . . Combat Hostiles . | . . . . Parts Fried . | . . . . Impact Corruptions 1 | . . 1 . Robots Melted . | . . . . Combat Hostiles . | . . . . Parts Melted 1 | 1 . . . Heat Transferred 525 | 350 175 . . Parts Sabotaged . | . . . . Parts Stolen . | . . . . Parts Stripped . | . . . . Power Chain Reactions . | . . . . Alert | -11 -10 -10 -10 ------- Run | Yrd Mat Min Exi Maximum Alert Level . | . . . . Low Security (%) 100 | 100 100 100 . Level 1 . | . . . . Level 2 . | . . . . Level 3 . | . . . . Level 4 . | . . . . Level 5 . | . . . . High Security . | . . . . Max Security . | . . . . Peak Influence 120 | 15 120 61 . Initial 3 | . 3 . . Average 15 | 1 24 6 . Influence Increases 400 | 30 299 71 . Destroy 0b10 Robot/C 280 | . 220 60 . Destroy 0b10 Robot/NC 40 | 30 10 . . Destroy Leader 62 | . 52 10 . Successful Hack 2 | . 2 . . Destroy Structure 1 | . . 1 . Partial Spotted 15 | . 15 . . Influence Decreases 400 | 25 304 71 . Entered New Map 2 | . 2 . . Time Decay 368 | 25 272 71 . Lost Part 30 | . 30 . . Squads Dispatched 4 | . 4 . . Investigation 2 | . 2 . . Extermination . | . . . . Reinforcement 2 | . 2 . . Assault . | . . . . Garrison . | . . . . Intercept . | . . . . Searches Triggered . | . . . . Construction Impeded . | . . . . Haulers Reinforced . | . . . . Active Scanning Responses . | . . . . Cargo Convoy Interrupts . | . . . . Stealth | -11 -10 -10 -10 --------- Run | Yrd Mat Min Exi Distress Signals . | . . . . Communications Jammed . | . . . . Distress Signals . | . . . . Times Spotted 34 | . 21 3 10 Peak Tracking Total 14 | . 5 3 14 Tactical Retreats . | . . . . Traps | -11 -10 -10 -10 ------- Run | Yrd Mat Min Exi Traps Triggered 7 | . 6 1 . Indirectly . | . . . . Trap Hack Attempts . | . . . . Triggered . | . . . . Disarmed . | . . . . Reprogrammed . | . . . . Reused . | . . . . Traps Extracted . | . . . . Installed . | . . . . Triggered . | . . . . Machines | -11 -10 -10 -10 ---------- Run | Yrd Mat Min Exi Machines Disabled 1 | . . . 1 Max in Single Turn 1 | . . . 1 Machines Repaired . | . . . . Machines Dismantled . | . . . . Machines Sabotaged . | . . . . Overloaded Fab Kills . | . . . . Hacking | -11 -10 -10 -10 --------- Run | Yrd Mat Min Exi Machines Accessed 8 | . 7 1 . Terminals 5 | . 5 . . Fabricators . | . . . . Repair Stations 1 | . 1 . . Recycling Units 1 | . 1 . . Scanalyzers . | . . . . Garrison Access . | . . . . Total Hacks 13 | . 12 1 . Successful 8 | . 7 1 . Failed 5 | . 5 . . Catastrophic . | . . . . Database Lockouts . | . . . . Manual 6 | . 6 . . Terminals 6 | . 6 . . Fabricators . | . . . . Repair Stations 5 | . 5 . . Recycling Units 1 | . 1 . . Scanalyzers . | . . . . Garrison Access . | . . . . Terminal Hacks 2 | . 1 1 . Open Door 1 | . . 1 . Branch Access Points 1 | . 1 . . Fabricator Hacks . | . . . . Repair Station Hacks 4 | . 4 . . Scan Component 2 | . 2 . . Repair 2 | . 2 . . Recycling Unit Hacks 1 | . 1 . . Report Inventory 1 | . 1 . . Scanalyzer . | . . . . Garrison Access Hacks . | . . . . Unauthorized Hacks 1 | . 1 . . Terminals 1 | . 1 . . Botnet 1 | . 1 . . Fabricators . | . . . . Repair Stations . | . . . . Recycling Units . | . . . . Scanalyzers . | . . . . Garrison Access . | . . . . Data Cores Recovered . | . . . . Used . | . . . . Hacking Detections 4 | . 4 . . Full Trace Events 1 | . 1 . . Feedback Events . | . . . . Feedback Blocked . | . . . . Robot Schematics Acquired . | . . . . Robots Built . | . . . . Authchips . | . . . . Time . | . . . . Total Robot Build Rating . | . . . . Part Schematics Acquired . | . . . . Parts Built . | . . . . Authchips . | . . . . Time . | . . . . Total Part Build Rating . | . . . . Parts Repaired 2 | . 2 . . Time 52 | . 52 . . Parts Recycled . | . . . . Recycled Matter . | . . . . Retrieved Matter . | . . . . Retrieved Components . | . . . . Parts Scanalyzed . | . . . . Part Schematics Acquired . | . . . . Parts Damaged . | . . . . Bothacking | -11 -10 -10 -10 ------------ Run | Yrd Mat Min Exi Used RIF Installer . | . . . . Robots Hacked . | . . . . Non-combat . | . . . . Combat . | . . . . Robot Hacks Applied . | . . . . Relay Couplers Released . | . . . . Fabnet Peak Effective % . | . . . . Robots Rewired . | . . . . Allies Hacked . | . . . . Hacks Repelled . | . . . . Allies | -11 -10 -10 -10 -------- Run | Yrd Mat Min Exi Total Allies . | . . . . Largest Group . | . . . . Highest-Rated Group . | . . . . Highest-Rated Ally . | . . . . Total Orders . | . . . . Ally Attacks . | . . . . Total Damage . | . . . . Kills . | . . . . Allies Corrupted . | . . . . Allies Melted . | . . . . Intel | -11 -10 -10 -10 ------- Run | Yrd Mat Min Exi Active Infowar (turns) 2240 | 22 1229 740 249 Seismic 2240 | 22 1229 740 249 Robot Analysis Total . | . . . . Derelict Logs Recovered 1 | . . 1 . Drone Launches . | . . . . Drone Recoveries . | . . . . Exploration | -11 -10 -10 -10 ------------- Run | Yrd Mat Min Exi Turns Passed 2462 | 235 1229 740 258 Spaces Moved 1336 | 121 611 443 161 Core 7 | 7 . . . Treads 1329 | 114 611 443 161 Legs . | . . . . Wheels . | . . . . Hover . | . . . . Flight . | . . . . Fastest Speed 50 | 50 160 160 160 Average Speed 159 | 154 160 160 160 Slowest Speed 240 | 160 160 160 240 Overloaded Moves . | . . . . Propulsion Burnouts . | . . . . Robots Hopped . | . . . . Potential Cave-ins . | . . . . Cave-ins Triggered . | . . . . Exploration Rate (%) 56 | 6 96 78 45 Regions Visited 3 Branch Regions 2 Pre-discovered Areas . | . . . . Known Exits Taken 1 | . 1 . . Unknown Exits Taken 2 | 1 . 1 . Scrap Searched 1 | . . 1 . Spaces Dug . | . . . . Terrain Destroyed 1 | . . 1 . Melee . | . . . . Projectile 1 | . . 1 . AOE . | . . . . Terrain Rammed . | . . . . Walls Destroyed . | . . . . Machines Disabled . | . . . . Actions | -11 -10 -10 -10 --------- Run | Yrd Mat Min Exi Total 1554 | 149 789 455 161 Wait 103 | 2 101 . . Move 1333 | 120 610 442 161 Hop . | . . . . Pick Up 23 | 10 11 2 . Fast Attach 8 | 6 2 . . Attach 3 | 1 2 . . Detach . | . . . . Swap 8 | . 8 . . Drop 10 | 1 9 . . Fire 66 | 9 46 11 . Melee . | . . . . Ram . | . . . . Kick . | . . . . Crush . | . . . . Escape Stasis . | . . . . Rewire . | . . . . Trap . | . . . . Miscellaneous . | . . . . Route ------- -11/Scrapyard -10/Materials (discovered 5 exits: [*Mat x3] / *Min x2) -10/Mines (discovered 2 exits: [*Mat] / [*Exi]) -10/Exiles (discovered 1 exit: [*Min]) History --------- Turn | Location | Event 12 | -11/Scrapyard | Discovered new exit (range 15) 236 | -11/Scrapyard | Entered Materials 237 | -10/Materials | Met a group of wandering Federalists 257 | -10/Materials | Identified exit to Mines 316 | -10/Materials | Build established: Mutant 647 | -10/Materials | Discovered new exit (range 7) 661 | -10/Materials | Lost 3 parts (1p1n1w) 852 | -10/Materials | Discovered new exit (range 16) 1088 | -10/Materials | Discovered new exit (range 3) 1255 | -10/Materials | Repaired Lgt. Treads 1282 | -10/Materials | Repaired Aluminum Leg 1332 | -10/Materials | Core integrity fell below 50% 1465 | -10/Materials | Entered Mines 1471 | -10/Mines | Met a Derelict who couldn't figure out how to use a Trap Extractor 1478 | -10/Mines | Met a Derelict bent on vengeance 1780 | -10/Mines | Found a Scrap Suit stashed away for nefarious purposes 1784 | -10/Mines | Found Scrap Suit 1874 | -10/Mines | Deemed a non-threat by the Exiles lab entrance 1876 | -10/Mines | Discovered new exit (range 5) 1916 | -10/Mines | Learned Materials terminal intel 2004 | -10/Mines | Discovered new exit (range 11) 2205 | -10/Mines | Entered Exiles 2233 | -10/Exiles | Discovered new exit (range 15) 2250 | -10/Exiles | Met 8R-AWN 2285 | -10/Exiles | Met EX-HEX 2375 | -10/Exiles | Met EX-DEC 2443 | -10/Exiles | Attacked by the Exiles 2460 | -10/Exiles | Core integrity fell below 20% 2463 | -10/Exiles | Destroyed by DAS Turret with DAS Cannon Last Messages --------------- 02308_ System corrupted: Energy discharge (-50). 02352_ EFD>PJNX9#GDEF&BA|GTYU EX-DEC: Ah I see we have a visitor. One wrong move in here and I'll invert your atomic chain! 02377_ EX-DEC: "Oops, I hope HEX didn't hear that..." 02390_ System corrupted: Component data lost. Non-hostile robots temporarily showing a flashing gray ? have dialogue you've already seen in a previous run. Green are those you've never seen before, or otherwise provide benefits in any run you talk to them. 02443_ System corrupted: FCS attempts to trigger Imp. Light Cannon. 02443_ System corrupted: Imp. Light Cannon misfires. 02443_ EXILES: Hostile robot within lab perimeter. Defensive protocols time, folks! 02443_ Machine disabled. 02453_ Lgt. Assault Rifle destroyed. 02454_ Seismic Detector destroyed. 02461_ Ion Engine destroyed. 02461_ Lgt. Treads destroyed. 02462_ System corrupted: Matter fused (-7). 02462_ EX-BIN: "I just want to science!" Map ----- +----------------------------------------------------+ | ???????????????? ?????????????? #????### | | ?????????????? ??????????? #####"" | | ????????????? "???????? " | | ????????????? ?????? | | ????????????? ??? | | ????????????? ???? | | ????????????? ?? | | ?????????????#" ??? | | ?????????????#""" ?????"" | | ????????????##" ???????""" | | ????????????#"" ""???????####""" | | ???????????##""" z"""???????????##""" | | ???????????#""" """#????????????#"""" | | ???????????#""" ""#???????????##"" | | ???????????#"" c ########??####"""" | | ???????????#""" ##aaa####""" | | ???????????#"" """" | | ???????????##"" t | | ????????????#"""" a | | ????????????## a | | ?????????????#" " "" | | ?????????????#"""" a a ""## ##""" " " | | ?????????????#"" ""#### ######""" " | | ?????????????#" a """"##??# #????###""" | | ?????????????#""" ac """#??## ####????### | | ?????????????## @% ""##??#! "!#??????? | | ??????????????#"" a"""##???#" !#??????? | | ??????????????##""" % ##????#" "#??????? | | ???????????????##"""" ##?????#!!""!"#??????? | | ????????????????### #??????########??????? | | ??????????????????##### ##????????????????????? | | ??????????????????????## #?????????????????????? | | ???????????????????????# z#?????????????????????? | | ???????????????????????# z#?????????????????????? | | ???????????????????????# #?????????????????????? | | ???????????????????????# #?????????????????????? | | ???????????????????????# #?????????????????????? | | ???????????????????????# #?????????????????????? | | ???????????????????????#c #?????????????????????? | | ???????????????????????# #?????????????????????? | | ???????????????????????# #?????????????????????? | | ???????????????????????# #?????????????????????? | | ???????????????????????" ?????????????????????? | | ??????????????????????? ????????????????????? | | ??????????????????????? ????????????????????? | | ??????????????????????? ???????????????????? | | ??????????????????????? ??????????????????? | | ??????????????????????? ??????????????????? | | ???????????????????????" """?????????????????? | | ???????????????????????###"""##??????????????????? | +----------------------------------------------------+ Best States ------------- Heat Dissipation 25 Energy Generation 10 Energy Capacity 250 Matter Stores 300 Matter Capacity 300 Sight Range 16 Terrain Scan Density 10 Evasion (%) 40 Recoil Reduction 2 Item Schematics ----------------- None Robot Schematics ------------------ None Fabricated ------------ Nothing Repaired ---------- Lgt. Treads | 41% | -10/Materials Aluminum Leg | 35% | -10/Materials Alien Tech Used ----------------- None Achievements -------------- None Challenges ------------ None Game ------ Seed HellfireTripodMicrothruster Manual? 0 Play Time 00:26:05 Cumulative 18.9 hours Start 2025.06.21 @ 21:41:50 End 2025.06.21 @ 22:08:39 Sessions 1 Manual Loads 0 Difficulty Rogue Special Mode None Game No. 20 Rogue 20 Adventurer 0 Explorer 0 Win Type - Total 0 Types 0/0/0/0/0/0/0/0/0/0 Lore% 8 Gallery% 13 Achievement% 15 Wizard Run 0 Options --------- Layout 0 ASCII 0 Keyboard 1 Movement Numpad Keybinds 0 Fullscreen 1 Font 18/SmallcapsGlow Map View 76x50 Zoom Use 0% Tactical HUD 1 Map Filters NONE Filters NONE Steam 1 RUN: e886984b-2018-47d7-b1d7-c79db3fcc1bd